{"text_format":"1","workbook":"xlsx","n_sheets":3,"sheets":["Sandėlio atsargų sąrašas","Atsargų išrinkimo dokumentas","Dėžių peržvalga"],"not_rendered":{"charts":0,"images":0,"macros":1,"external_links":0,"defined_names":8,"comments":0,"pivot_tables":0},"unopened":[],"bounds":{"document_bytes":16777216,"sheet_cells":100000,"rows_first":2000,"rows_last":500,"rows_between":2000,"halvings":0,"cell_chars":16384,"cell_head_chars":4096},"cells_cut":0,"cells_raw":0,"read":"whole","date_system":"1900"}

{"sheet":"Sandėlio atsargų sąrašas","index":0,"n_rows":15,"n_cols":11,"rows_kept":15,"cut":false,"hidden":false,"merged":[]}
[null,"SANDĖLIO ATSARGŲ SĄRAŠAS"]
[null,"BENDRA ATSARGŲ VERTĖ:","ATSARGŲ PREKĖS:","DĖŽIŲ SKAIČIUS:","ATSARGŲ PAĖMIMŲ SĄRAŠAS","DĖŽĖS PERŽVALGA"]
[null,{"$f":"SUM(AtsargųSąrašas[ATSARGŲ VERTĖ])","v":4649},{"$f":"COUNTA(AtsargųSąrašas[APRAŠAS])","v":11},{"$f":"SUMPRODUCT((1/COUNTIF(AtsargųSąrašas[DĖŽĖS NR.],AtsargųSąrašas[DĖŽĖS NR.]&\"\")))","v":6}]
[null,"SKU","APRAŠAS","DĖŽĖS NR.","VIETA","VIENETAI","KIEKIS","PAPILDOMO UŽSAKYMO KIEKIS","KAINA","ATSARGŲ VERTĖ","PAPILDOMAS UŽSAKYMAS"]
[null,"SP7875","1 prekė","T345",{"$f":"IFERROR(VLOOKUP(AtsargųSąrašas[[#This Row],[DĖŽĖS NR.]],DėžėsPeržvalga[],3,FALSE),\"\")","v":"2 eilė, 1 anga"},"Vienetas",20,10,30,{"$f":"AtsargųSąrašas[[#This Row],[KIEKIS]]*AtsargųSąrašas[[#This Row],[KAINA]]","v":600},{"$f":"IFERROR(IF(AtsargųSąrašas[[#This Row],[KIEKIS]]<=AtsargųSąrašas[[#This Row],[PAPILDOMO UŽSAKYMO KIEKIS]],1,0),0)","v":0}]
[null,"TR87680","2 prekė","T345",{"$f":"IFERROR(VLOOKUP(AtsargųSąrašas[[#This Row],[DĖŽĖS NR.]],DėžėsPeržvalga[],3,FALSE),\"\")","v":"2 eilė, 1 anga"},"Vienetas",30,15,40,{"$f":"AtsargųSąrašas[[#This Row],[KIEKIS]]*AtsargųSąrašas[[#This Row],[KAINA]]","v":1200},{"$f":"IFERROR(IF(AtsargųSąrašas[[#This Row],[KIEKIS]]<=AtsargųSąrašas[[#This Row],[PAPILDOMO UŽSAKYMO KIEKIS]],1,0),0)","v":0}]
[null,"MK676554","3 prekė","T5789",{"$f":"IFERROR(VLOOKUP(AtsargųSąrašas[[#This Row],[DĖŽĖS NR.]],DėžėsPeržvalga[],3,FALSE),\"\")","v":"1 eilė, 1 anga"},"Vienetas",10,5,5,{"$f":"AtsargųSąrašas[[#This Row],[KIEKIS]]*AtsargųSąrašas[[#This Row],[KAINA]]","v":50},{"$f":"IFERROR(IF(AtsargųSąrašas[[#This Row],[KIEKIS]]<=AtsargųSąrašas[[#This Row],[PAPILDOMO UŽSAKYMO KIEKIS]],1,0),0)","v":0}]
[null,"YE98767","4 prekė","T9876",{"$f":"IFERROR(VLOOKUP(AtsargųSąrašas[[#This Row],[DĖŽĖS NR.]],DėžėsPeržvalga[],3,FALSE),\"\")","v":"3 eilė, 2 anga"},"Dėžė (10 ct)",40,10,15,{"$f":"AtsargųSąrašas[[#This Row],[KIEKIS]]*AtsargųSąrašas[[#This Row],[KAINA]]","v":600},{"$f":"IFERROR(IF(AtsargųSąrašas[[#This Row],[KIEKIS]]<=AtsargųSąrašas[[#This Row],[PAPILDOMO UŽSAKYMO KIEKIS]],1,0),0)","v":0}]
[null,"XR23423","5 prekė","T098",{"$f":"IFERROR(VLOOKUP(AtsargųSąrašas[[#This Row],[DĖŽĖS NR.]],DėžėsPeržvalga[],3,FALSE),\"\")","v":"3 eilė, 1 anga"},"Vienetas",12,10,26,{"$f":"AtsargųSąrašas[[#This Row],[KIEKIS]]*AtsargųSąrašas[[#This Row],[KAINA]]","v":312},{"$f":"IFERROR(IF(AtsargųSąrašas[[#This Row],[KIEKIS]]<=AtsargųSąrašas[[#This Row],[PAPILDOMO UŽSAKYMO KIEKIS]],1,0),0)","v":0}]
[null,"PW98762","6 prekė","T345",{"$f":"IFERROR(VLOOKUP(AtsargųSąrašas[[#This Row],[DĖŽĖS NR.]],DėžėsPeržvalga[],3,FALSE),\"\")","v":"2 eilė, 1 anga"},"Vienetas",7,10,50,{"$f":"AtsargųSąrašas[[#This Row],[KIEKIS]]*AtsargųSąrašas[[#This Row],[KAINA]]","v":350},{"$f":"IFERROR(IF(AtsargųSąrašas[[#This Row],[KIEKIS]]<=AtsargųSąrašas[[#This Row],[PAPILDOMO UŽSAKYMO KIEKIS]],1,0),0)","v":1}]
[null,"BM87684","7 prekė","T349",{"$f":"IFERROR(VLOOKUP(AtsargųSąrašas[[#This Row],[DĖŽĖS NR.]],DėžėsPeržvalga[],3,FALSE),\"\")","v":"1 eilė, 2 anga"},"Vienetas",10,5,10,{"$f":"AtsargųSąrašas[[#This Row],[KIEKIS]]*AtsargųSąrašas[[#This Row],[KAINA]]","v":100},{"$f":"IFERROR(IF(AtsargųSąrašas[[#This Row],[KIEKIS]]<=AtsargųSąrašas[[#This Row],[PAPILDOMO UŽSAKYMO KIEKIS]],1,0),0)","v":0}]
[null,"BH67655","8 prekė","T5789",{"$f":"IFERROR(VLOOKUP(AtsargųSąrašas[[#This Row],[DĖŽĖS NR.]],DėžėsPeržvalga[],3,FALSE),\"\")","v":"1 eilė, 1 anga"},"Vienetas",19,10,3,{"$f":"AtsargųSąrašas[[#This Row],[KIEKIS]]*AtsargųSąrašas[[#This Row],[KAINA]]","v":57},{"$f":"IFERROR(IF(AtsargųSąrašas[[#This Row],[KIEKIS]]<=AtsargųSąrašas[[#This Row],[PAPILDOMO UŽSAKYMO KIEKIS]],1,0),0)","v":0}]
[null,"WT98768","9 prekė","T9875",{"$f":"IFERROR(VLOOKUP(AtsargųSąrašas[[#This Row],[DĖŽĖS NR.]],DėžėsPeržvalga[],3,FALSE),\"\")","v":"2 eilė, 2 anga"},"Pakuotė (5 ct)",20,30,14,{"$f":"AtsargųSąrašas[[#This Row],[KIEKIS]]*AtsargųSąrašas[[#This Row],[KAINA]]","v":280},{"$f":"IFERROR(IF(AtsargųSąrašas[[#This Row],[KIEKIS]]<=AtsargųSąrašas[[#This Row],[PAPILDOMO UŽSAKYMO KIEKIS]],1,0),0)","v":1}]
[null,"TS3456","10 prekė","T349",{"$f":"IFERROR(VLOOKUP(AtsargųSąrašas[[#This Row],[DĖŽĖS NR.]],DėžėsPeržvalga[],3,FALSE),\"\")","v":"1 eilė, 2 anga"},"Vienetas",15,8,60,{"$f":"AtsargųSąrašas[[#This Row],[KIEKIS]]*AtsargųSąrašas[[#This Row],[KAINA]]","v":900},{"$f":"IFERROR(IF(AtsargųSąrašas[[#This Row],[KIEKIS]]<=AtsargųSąrašas[[#This Row],[PAPILDOMO UŽSAKYMO KIEKIS]],1,0),0)","v":0}]
[null,"WDG123","11 prekė","T349",{"$f":"IFERROR(VLOOKUP(AtsargųSąrašas[[#This Row],[DĖŽĖS NR.]],DėžėsPeržvalga[],3,FALSE),\"\")","v":"1 eilė, 2 anga"},"Vienetas",25,15,8,{"$f":"AtsargųSąrašas[[#This Row],[KIEKIS]]*AtsargųSąrašas[[#This Row],[KAINA]]","v":200},{"$f":"IFERROR(IF(AtsargųSąrašas[[#This Row],[KIEKIS]]<=AtsargųSąrašas[[#This Row],[PAPILDOMO UŽSAKYMO KIEKIS]],1,0),0)","v":0}]

{"sheet":"Atsargų išrinkimo dokumentas","index":1,"n_rows":9,"n_cols":9,"rows_kept":9,"cut":false,"hidden":false,"merged":[]}
[null,"Atsargų išrinkimo dokumentas"]
[null,null,"ATSARGŲ SĄRAŠAS"]
[]
[null,"UŽSAKYMO NR.","SKU","PAĖMIMO KIEKIS","TURIMAS KIEKIS","PREKĖS APRAŠAS","VIENETAI","DĖŽĖS NR.","VIETA"]
[null,"TP001-1","SP7875",3,{"$f":"IFERROR(VLOOKUP(AtsargųPaėmimųSąrašas[SKU],AtsargųSąrašas[],6,FALSE),\"\")","v":20},{"$f":"IFERROR(VLOOKUP(AtsargųPaėmimųSąrašas[SKU],AtsargųSąrašas[],2,FALSE),\"\")","v":"1 prekė"},{"$f":"IFERROR(VLOOKUP(AtsargųPaėmimųSąrašas[SKU],AtsargųSąrašas[],5,FALSE),\"\")","v":"Vienetas"},{"$f":"IFERROR(VLOOKUP(AtsargųPaėmimųSąrašas[SKU],AtsargųSąrašas[],3,FALSE),\"\")","v":"T345"},{"$f":"IFERROR(VLOOKUP(AtsargųPaėmimųSąrašas[SKU],AtsargųSąrašas[],4,FALSE),\"\")","v":"2 eilė, 1 anga"}]
[null,"TP001-1","YE98767",1,{"$f":"IFERROR(VLOOKUP(AtsargųPaėmimųSąrašas[SKU],AtsargųSąrašas[],6,FALSE),\"\")","v":40},{"$f":"IFERROR(VLOOKUP(AtsargųPaėmimųSąrašas[SKU],AtsargųSąrašas[],2,FALSE),\"\")","v":"4 prekė"},{"$f":"IFERROR(VLOOKUP(AtsargųPaėmimųSąrašas[SKU],AtsargųSąrašas[],5,FALSE),\"\")","v":"Dėžė (10 ct)"},{"$f":"IFERROR(VLOOKUP(AtsargųPaėmimųSąrašas[SKU],AtsargųSąrašas[],3,FALSE),\"\")","v":"T9876"},{"$f":"IFERROR(VLOOKUP(AtsargųPaėmimųSąrašas[SKU],AtsargųSąrašas[],4,FALSE),\"\")","v":"3 eilė, 2 anga"}]
[null,"TP001-1","BM87684",2,{"$f":"IFERROR(VLOOKUP(AtsargųPaėmimųSąrašas[SKU],AtsargųSąrašas[],6,FALSE),\"\")","v":10},{"$f":"IFERROR(VLOOKUP(AtsargųPaėmimųSąrašas[SKU],AtsargųSąrašas[],2,FALSE),\"\")","v":"7 prekė"},{"$f":"IFERROR(VLOOKUP(AtsargųPaėmimųSąrašas[SKU],AtsargųSąrašas[],5,FALSE),\"\")","v":"Vienetas"},{"$f":"IFERROR(VLOOKUP(AtsargųPaėmimųSąrašas[SKU],AtsargųSąrašas[],3,FALSE),\"\")","v":"T349"},{"$f":"IFERROR(VLOOKUP(AtsargųPaėmimųSąrašas[SKU],AtsargųSąrašas[],4,FALSE),\"\")","v":"1 eilė, 2 anga"}]
[null,"TP001-1","TS3456",6,{"$f":"IFERROR(VLOOKUP(AtsargųPaėmimųSąrašas[SKU],AtsargųSąrašas[],6,FALSE),\"\")","v":15},{"$f":"IFERROR(VLOOKUP(AtsargųPaėmimųSąrašas[SKU],AtsargųSąrašas[],2,FALSE),\"\")","v":"10 prekė"},{"$f":"IFERROR(VLOOKUP(AtsargųPaėmimųSąrašas[SKU],AtsargųSąrašas[],5,FALSE),\"\")","v":"Vienetas"},{"$f":"IFERROR(VLOOKUP(AtsargųPaėmimųSąrašas[SKU],AtsargųSąrašas[],3,FALSE),\"\")","v":"T349"},{"$f":"IFERROR(VLOOKUP(AtsargųPaėmimųSąrašas[SKU],AtsargųSąrašas[],4,FALSE),\"\")","v":"1 eilė, 2 anga"}]
[null,"TP001-1","MK676554",3,{"$f":"IFERROR(VLOOKUP(AtsargųPaėmimųSąrašas[SKU],AtsargųSąrašas[],6,FALSE),\"\")","v":10},{"$f":"IFERROR(VLOOKUP(AtsargųPaėmimųSąrašas[SKU],AtsargųSąrašas[],2,FALSE),\"\")","v":"3 prekė"},{"$f":"IFERROR(VLOOKUP(AtsargųPaėmimųSąrašas[SKU],AtsargųSąrašas[],5,FALSE),\"\")","v":"Vienetas"},{"$f":"IFERROR(VLOOKUP(AtsargųPaėmimųSąrašas[SKU],AtsargųSąrašas[],3,FALSE),\"\")","v":"T5789"},{"$f":"IFERROR(VLOOKUP(AtsargųPaėmimųSąrašas[SKU],AtsargųSąrašas[],4,FALSE),\"\")","v":"1 eilė, 1 anga"}]

{"sheet":"Dėžių peržvalga","index":2,"n_rows":11,"n_cols":7,"rows_kept":11,"cut":false,"hidden":false,"merged":[]}
[null,"Dėžių peržvalga"]
[null,"ATSARGŲ SĄRAŠAS"]
[]
[null,"DĖŽĖS NR.","APRAŠAS","VIETA","PLOTIS","AUKŠTIS","ILGIS"]
[null,"T345","Didelė dėžė","2 eilė, 1 anga",50,10,10]
[null,"T5789","Maža dėžė","1 eilė, 1 anga",25,5,5]
[null,"T9876","Didelė dėžė","3 eilė, 2 anga",50,10,10]
[null,"T098","Vidutinė dėžė","3 eilė, 1 anga",30,7,10]
[null,"T349","Maža dėžė","1 eilė, 2 anga",25,5,5]
[null,"T5789","Didelė dėžė","4 eilė, 5 anga",50,10,10]
[null,"T9875","Didelė dėžė","2 eilė, 2 anga",50,10,10]